Workbook

Sheet เริ่ม
B1: เกี่ยวกับเทมเพลตนี้
B2: ใช้เวิร์กบุ๊กงบประมาณจัดกิจกรรมนี้เพื่อติดตามค่าใช้จ่ายที่เกิดขึ้นและรายได้ที่ได้รับจากกิจกรรม
B3: กรอกชื่อกิจกรรม แล้วใส่รายละเอียดในตารางในเวิร์กชีตค่าใช้จ่ายและเวิร์กชีตรายได้
B4: ค่าใช้จ่ายทั้งหมดและรายได้ทั้งหมดจะถูกคำนวณโดยอัตโนมัติ
B5: สรุปและแผนภูมิของกำไรขาดทุนจะอัปเดตโดยอัตโนมัติในเวิร์กชีตสรุปกำไรขาดทุน
B6: หมายเหตุ:
B7: คำแนะนำเพิ่มเติมจะอยู่ในคอลัมน์ A ในเวิร์กชีตแต่ละแผ่น ข้อความนี้ได้ถูกซ่อนไว้โดยตั้งใจ เมื่อต้องการเอาข้อความออก ให้เลือกคอลัมน์ A แล้วเลือก ลบ เมื่อต้องการยกเลิกการซ่อนข้อความ ให้เลือกคอลัมน์ A แล้วเปลี่ยนสีฟอนต์
B8: เมื่อต้องการเรียนรู้เพิ่มเติมเกี่ยวกับตาราง ให้กด SHIFT แล้วตามด้วย F10 ภายในตาราง แล้วเลือกตัวเลือก ตาราง จากนั้นเลือก ข้อความแสดงแทน

Sheet รายจ่าย
A1: ใส่ค่าใช้จ่ายโดยประมาณและค่าใช้จ่ายจริงสำหรับแต่ละประเภทในตารางที่สอดคล้องกันในเวิร์กชีตนี้ และชื่อกิจกรรมในเซลล์ D1 เพื่อกำหนดชื่อของเวิร์กชีตนี้และเวิร์กชีตอื่นๆ เอง ชื่อเรื่องของเวิร์กชีตนี้อยู่ในเซลล์ H1 คำแนะนำที่เป็นประโยชน์เกี่ยวกับวิธีใช้เวิร์กชีตนี้อยู่ในเซลล์ในคอลัมน์นี้ คำแนะนำถัดไปอยู่ในเซลล์ A3 | B1: งบประมาณจัดกิจกรรมสำหรับชื่อกิจกรรม | H1: ค่าใช้จ่าย
A3: ป้ายชื่อค่าใช้จ่ายทั้งหมดอยู่ในเซลล์ด้านขวา ป้ายชื่อค่าใช้จ่ายโดยประมาณอยู่ในเซลล์ G3 และค่าใช้จ่ายจริงอยู่ใน H3 | B3: ค่าใช้จ่ายทั้งหมด | G3: ค่าใช้จ่ายโดยประมาณ | H3: ค่าใช้จ่ายจริง
A4: ค่าใช้จ่ายโดยประมาณทั้งหมดในเซลล์ G4 และค่าใช้จ่ายจริงทั้งหมดใน H4 จะถูกคำนวณโดยอัตโนมัติ คำแนะนำถัดไปอยู่ในเซลล์ A6 | G4: =SUM(C11,C19,C25,C32,G11,G19,G24) -> ฿882.00 | H4: =SUM(D11,D19,D25,D32,H11,H19,H24) -> ฿333.00
A6: ใส่ค่าใช้จ่ายด้านสถานที่ในตารางโดยเริ่มจากเซลล์ด้านขวา และค่าใช้จ่ายด้านอาหารว่างในตารางโดยเริ่มจากเซลล์ F6 คำแนะนำถัดไปอยู่ในเซลล์ A13 | B6: สถานที่ | C6: ค่าใช้จ่ายโดยประมาณ | D6: ค่าใช้จ่ายจริง | F6: อาหารว่าง | G6: ค่าใช้จ่ายโดยประมาณ | H6: ค่าใช้จ่ายจริง
B7: ค่าห้องและหอประชุม | C7: ฿500.00 | F7: อาหาร
B8: เจ้าหน้าที่ของสถานที่ | F8: เครื่องดื่ม | G8: ฿20.00
B9: อุปกรณ์ | F9: ผ้าปูโต๊ะ | H9: ฿20.00
B10: โต๊ะและเก้าอี้ | F10: พนักงานและเงินค่าตอบแทน
B11: ผลรวม | C11: =SUBTOTAL(109,SiteExpenses[ค่าใช้จ่ายโดยประมาณ]) -> ฿500.00 | D11: =SUBTOTAL(109,SiteExpenses[ค่าใช้จ่ายจริง]) -> ฿0.00 | F11: ผลรวม | G11: =SUBTOTAL(109,RefreshmentsExpenses[ค่าใช้จ่ายโดยประมาณ]) -> ฿20.00 | H11: =SUBTOTAL(109,RefreshmentsExpenses[ค่าใช้จ่ายจริง]) -> ฿20.00
A13: ใส่ค่าใช้จ่ายด้านการตกแต่งในตารางโดยเริ่มจากเซลล์ด้านขวา และค่าใช้จ่ายด้านรายการแสดงในตารางโดยเริ่มจากเซลล์ F13 คำแนะนำถัดไปอยู่ในเซลล์ A21 | B13: การตกแต่ง | C13: ค่าใช้จ่ายโดยประมาณ | D13: ค่าใช้จ่ายจริง | F13: รายการแสดง | G13: ค่าใช้จ่ายโดยประมาณ | H13: ค่าใช้จ่ายจริง
B14: ดอกไม้ | C14: ฿200.00 | D14: ฿300.00 | F14: ผู้แสดง
B15: เทียน | F15: ลำโพง | G15: ฿30.00
B16: โคมไฟ | F16: การเดินทาง
B17: บอลลูน | F17: โรงแรม
B18: วัสดุกระดาษ | F18: อื่นๆ
B19: ผลรวม | C19: =SUBTOTAL(109,DecorationsExpenses[ค่าใช้จ่ายโดยประมาณ]) -> ฿200.00 | D19: =SUBTOTAL(109,DecorationsExpenses[ค่าใช้จ่ายจริง]) -> ฿300.00 | F19: ผลรวม | G19: =SUBTOTAL(109,ProgramExpenses[ค่าใช้จ่ายโดยประมาณ]) -> ฿30.00 | H19: =SUBTOTAL(109,ProgramExpenses[ค่าใช้จ่ายจริง]) -> ฿0.00
A21: ใส่ค่าใช้จ่ายด้านการประชาสัมพันธ์ในตารางโดยเริ่มจากเซลล์ด้านขวา และค่าใช้จ่ายด้านรางวัลในตารางโดยเริ่มจากเซลล์ F21 คำแนะนำถัดไปอยู่ในเซลล์ A27 | B21: การประชาสัมพันธ์ | C21: ค่าใช้จ่ายโดยประมาณ | D21: ค่าใช้จ่ายจริง | F21: รางวัล | G21: ค่าใช้จ่ายโดยประมาณ | H21: ค่าใช้จ่ายจริง
B22: งานกราฟิก | F22: สายสะพาย/โล่/ถ้วยรางวัล
B23: การถ่ายสำเนา/การพิมพ์ | C23: ฿20.00 | F23: ของชำร่วย | G23: ฿100.00
B24: ค่าไปรษณีย์ | F24: ผลรวม | G24: =SUBTOTAL(109,PrizesExpenses[ค่าใช้จ่ายโดยประมาณ]) -> ฿100.00 | H24: =SUBTOTAL(109,PrizesExpenses[ค่าใช้จ่ายจริง]) -> ฿0.00
B25: ผลรวม | C25: =SUBTOTAL(109,PublicityExpenses[ค่าใช้จ่ายโดยประมาณ]) -> ฿20.00 | D25: =SUBTOTAL(109,PublicityExpenses[ค่าใช้จ่ายจริง]) -> ฿0.00
A27: ใส่ค่าใช้จ่ายเบ็ดเตล็ดในตารางโดยเริ่มจากเซลล์ด้านขวา | B27: เบ็ดเตล็ด | C27: ค่าใช้จ่ายโดยประมาณ | D27: ค่าใช้จ่ายจริง
B28: โทรศัพท์ | D28: ฿13.00
B29: พาหนะเดินทาง | C29: ฿12.00
B30: อุปกรณ์เครื่องเขียน
B31: บริการโทรสาร
B32: ผลรวม | C32: =SUBTOTAL(109,MiscellaneousExpenses[ค่าใช้จ่ายโดยประมาณ]) -> ฿12.00 | D32: =SUBTOTAL(109,MiscellaneousExpenses[ค่าใช้จ่ายจริง]) -> ฿13.00

Sheet รายได้
A1: ใส่รายได้โดยประมาณและรายได้จริงสำหรับแต่ละประเภทในตารางที่สอดคล้องกันในเวิร์กชีตนี้ ชื่อเรื่องของเวิร์กชีตนี้จะอัปเดตในเซลล์ด้านขวาโดยอัตโนมัติ ชื่อเรื่องอยู่ในเซลล์ G1 คำแนะนำที่เป็นประโยชน์เกี่ยวกับวิธีใช้เวิร์กชีตนี้อยู่ในเซลล์ในคอลัมน์นี้ คำแนะนำถัดไปอยู่ในเซลล์ A3 | B1: =รายจ่าย!B1 -> งบประมาณจัดกิจกรรมสำหรับชื่อกิจกรรม | G1: รายได้
A3: ป้ายชื่อรายได้ทั้งหมดอยู่ในเซลล์ด้านขวา ป้ายชื่อรายได้โดยประมาณอยู่ในเซลล์ F3 และรายได้จริงอยู่ใน G3 | B3: รายได้ทั้งหมด | F3: โดยประมาณ | G3: ตามที่เป็นจริง
A4: รายได้โดยประมาณทั้งหมดจะถูกคำนวณโดยอัตโนมัติในเซลล์ F4 และรายได้จริงทั้งหมดใน G4 | F4: =SUM(การเข้าร่วมงาน[[#Totals],[รายได้โดยประมาณ]],AdsInProgram[[#Totals],[รายได้โดยประมาณ]],ExhibitorsAndVendors[[#Totals],[รายได้โดยประมาณ]],SaleOfItems[[#Totals],[รายได้โดยประมาณ]]) -> ฿1,936.00 | G4: =SUM(การเข้าร่วมงาน[[#Totals],[รายได้จริง]],AdsInProgram[[#Totals],[รายได้จริง]],ExhibitorsAndVendors[[#Totals],[รายได้จริง]],SaleOfItems[[#Totals],[รายได้จริง]]) -> ฿1,831.00
A5: ป้ายชื่อค่าธรรมเนียมในการเข้าอยู่ในเซลล์ด้านขวา | B5: ค่าธรรมเนียมในการเข้า
A6: ใส่จำนวนค่าธรรมเนียมในการเข้าโดยประมาณและค่าเข้างานจริงพร้อมราคาตั๋วในตารางโดยเริ่มจากเซลล์ด้านขวา รายได้โดยประมาณและรายได้จริงจากค่าธรรมเนียมในการเข้าจะคำนวณโดยอัตโนมัติ คำแนะนำถัดไปอยู่ในเซลล์ A11 | B6: จำนวนโดยประมาณ | C6: จำนวนจริง | D6: ประเภท | E6: ราคา | F6: รายได้โดยประมาณ | G6: รายได้จริง
B7: 300 | C7: 278 | D7: ผู้ใหญ่ @ | E7: ฿5.00 | F7: =B7*E7 -> ฿1,500.00 | G7: =C7*E7 -> ฿1,390.00
B8: 197 | C8: 195 | D8: เด็ก @ | E8: ฿2.00 | F8: =B8*E8 -> ฿394.00 | G8: =C8*E8 -> ฿390.00
B9: 42 | C9: 51 | D9: อื่นๆ @ | E9: ฿1.00 | F9: =B9*E9 -> ฿42.00 | G9: =C9*E9 -> ฿51.00
B10: ผลรวม | F10: =SUBTOTAL(109,การเข้าร่วมงาน[รายได้โดยประมาณ]) -> ฿1,936.00 | G10: =SUBTOTAL(109,การเข้าร่วมงาน[รายได้จริง]) -> ฿1,831.00
A11: ป้ายชื่อโฆษณาในรายการแสดงอยู่ในเซลล์ด้านขวา | B11: โฆษณาในรายการแสดง
A12: ใส่จำนวนโฆษณาโดยประมาณและจำนวนโฆษณาจริงในรายการแสดงและราคาโฆษณาในตารางโดยเริ่มจากเซลล์ด้านขวา รายได้โดยประมาณและรายได้จริงจากโฆษณาจะคำนวณโดยอัตโนมัติ คำแนะนำถัดไปจะอยู่ในเซลล์ A17 | B12: จำนวนโดยประมาณ | C12: จำนวนจริง | D12: ประเภท | E12: ราคา | F12: รายได้โดยประมาณ | G12: รายได้จริง
B13: 12 | D13: ใบประหน้า @ | F13: =B13*E13 -> ฿0.00 | G13: =C13*E13 -> ฿0.00
C14: 158 | D14: ครึ่งหน้า @ | F14: =B14*E14 -> ฿0.00 | G14: =C14*E14 -> ฿0.00
B15: 4 | D15: 1/4 หน้า @ | F15: =B15*E15 -> ฿0.00 | G15: =C15*E15 -> ฿0.00
B16: ผลรวม | F16: =SUBTOTAL(109,AdsInProgram[รายได้โดยประมาณ]) -> ฿0.00 | G16: =SUBTOTAL(109,AdsInProgram[รายได้จริง]) -> ฿0.00
A17: ป้ายชื่อผู้จัดแสดงนิทรรศการหรือผู้จัดจำหน่ายอยู่ในเซลล์ด้านขวา | B17: ผู้จัดแสดงนิทรรศการ/ผู้จัดจำหน่าย
A18: ใส่จำนวนผู้จัดแสดงนิทรรศการและผู้จัดจำหน่ายโดยประมาณและจำนวนจริง และราคาบูธในตารางโดยเริ่มจากเซลล์ด้านขวา รายได้โดยประมาณและรายได้จริงจะคำนวณโดยอัตโนมัติ คำแนะนำถัดไปอยู่ในเซลล์ A23 | B18: จำนวนโดยประมาณ | C18: จำนวนจริง | D18: ประเภท | E18: ราคา | F18: รายได้โดยประมาณ | G18: รายได้จริง
B19: 23 | D19: บูธขนาดใหญ่ @ | F19: =B19*E19 -> ฿0.00 | G19: =C19*E19 -> ฿0.00
B20: 354 | D20: บูธขนาดกลาง @ | F20: =B20*E20 -> ฿0.00 | G20: =C20*E20 -> ฿0.00
B21: 56 | D21: บูธขนาดเล็ก @ | F21: =B21*E21 -> ฿0.00 | G21: =C21*E21 -> ฿0.00
B22: ผลรวม | F22: =SUBTOTAL(109,ExhibitorsAndVendors[รายได้โดยประมาณ]) -> ฿0.00 | G22: =SUBTOTAL(109,ExhibitorsAndVendors[รายได้จริง]) -> ฿0.00
A23: ป้ายชื่อยอดขายสินค้าอยู่ในเซลล์ด้านขวา | B23: ยอดขายสินค้า
A24: ใส่จำนวนสินค้าที่ขายโดยประมาณและจำนวนจริง และราคาสินค้าในตารางโดยเริ่มจากเซลล์ด้านขวา รายได้โดยประมาณและรายได้จริงจะคำนวณโดยอัตโนมัติ | B24: จำนวนโดยประมาณ | C24: จำนวนจริง | D24: ประเภท | E24: ราคา | F24: รายได้โดยประมาณ | G24: รายได้จริง
D25: สินค้า @ | F25: =B25*E25 -> ฿0.00 | G25: =C25*E25 -> ฿0.00
B26: 123 | D26: สินค้า @ | F26: =B26*E26 -> ฿0.00 | G26: =C26*E26 -> ฿0.00
D27: สินค้า @ | F27: =B27*E27 -> ฿0.00 | G27: =C27*E27 -> ฿0.00
B28: 13 | D28: สินค้า @ | F28: =B28*E28 -> ฿0.00 | G28: =C28*E28 -> ฿0.00
B29: ผลรวม | F29: =SUBTOTAL(109,SaleOfItems[รายได้โดยประมาณ]) -> ฿0.00 | G29: =SUBTOTAL(109,SaleOfItems[รายได้จริง]) -> ฿0.00

Sheet สรุปกำไร - ขาดทุน
A1: สรุปและแผนภูมิของกำไรขาดทุนที่แสดงรายได้และค่าใช้จ่ายทั้งหมดจะอัปเดตโดยอัตโนมัติในเวิร์กชีตนี้ ชื่อเรื่องของเวิร์กชีตนี้จะอัปเดตในเซลล์ด้านขวาโดยอัตโนมัติ ชื่อเรื่องอยู่ในเซลล์ G1 และ G2 คำแนะนำที่เป็นประโยชน์เกี่ยวกับวิธีใช้เวิร์กชีตนี้อยู่ในเซลล์ในคอลัมน์นี้ คำแนะนำถัดไปอยู่ในเซลล์ A3 | B1: =รายจ่าย!B1 -> งบประมาณจัดกิจกรรมสำหรับชื่อกิจกรรม | G1: กำไร
G2: สรุปขาดทุน
A3: แผนภูมิแท่งที่เปรียบเทียบรายได้และค่าใช้จ่ายโดยประมาณและรายได้และค่าใช้จ่ายจริงอยู่ในเซลล์ E3 | E3: แผนภูมิแท่งแสดงการเปรียบเทียบรายได้และค่าใช้จ่ายโดยประมาณและรายได้และค่าใช้จ่ายจริงอยู่ในเซลล์นี้
A4: ตารางสรุปที่เริ่มต้นจากเซลล์ด้านขวาจะอัปเดตโดยอัตโนมัติ คำแนะนำถัดไปอยู่ในเซลล์ A8 | B4: ผลรวม | C4: โดยประมาณ | D4: ตามที่เป็นจริง
B5: รายได้ทั้งหมด | C5: =รายได้!F4 -> ฿1,936.00 | D5: =รายได้!G4 -> ฿1,831.00
B6: ค่าใช้จ่ายทั้งหมด | C6: =รายจ่าย!G4 -> ฿882.00 | D6: =รายจ่าย!H4 -> ฿333.00
A8: ผลกำไรหรือขาดทุนโดยประมาณจะถูกคำนวณโดยอัตโนมัติในเซลล์ C8 และผลกำไรหรือขาดทุนตามจริงในเซลล์ D8 | B8: ผลกำไร (หรือขาดทุน) | C8: =C5-C6 -> ฿1,054.00 | D8: =D5-D6 -> ฿1,498.00
